[Event "Early Titled Tuesday Blitz | February 8 2022"]
[White "Haddouche, Mohamed"]
[Black "Kovanova, Baira"]
[WhiteFideId "7900660"]
[BlackFideId "4164083"]
[WhiteElo "2443"]
[BlackElo "2190"]
[Result "0-1"]
[Round "08"]
[TimeControl "180+1"]
[Date "2022.02.08"]
[WhiteClock "0:00:05"]
[BlackClock "0:00:29"]

1. e4 {[%clk 0:03:00]}  e5 {[%clk 0:02:59]} 2. Nf3 {[%clk 0:03:00]}  Nc6 {[%clk 0:02:58]} 3. Bc4 {[%clk 0:03:00]}  Nf6 {[%clk 0:02:57]} 4. d3 {[%clk 0:02:59]}  Bc5 {[%clk 0:02:57]} 5. O-O {[%clk 0:02:58]}  d6 {[%clk 0:02:55]} 6. c3 {[%clk 0:02:58]}  a6 {[%clk 0:02:54]} 7. Bb3 {[%clk 0:02:57]}  h6 {[%clk 0:02:52]} 8. Nbd2 {[%clk 0:02:55]}  O-O {[%clk 0:02:51]} 9. h3 {[%clk 0:02:54]}  Be6 {[%clk 0:02:50]} 10. Bc2 {[%clk 0:02:52]}  d5 {[%clk 0:02:50]} 11. exd5 {[%clk 0:02:50]}  Bxd5 {[%clk 0:02:45]} 12. Re1 {[%clk 0:02:50]}  Re8 {[%clk 0:02:44]} 13. b4 {[%clk 0:02:49]}  Bf8 {[%clk 0:02:43]} 14. a4 {[%clk 0:02:46]}  Qd7 {[%clk 0:02:34]} 15. Bb2 {[%clk 0:02:34]}  b5 {[%clk 0:02:27]} 16. Ne4 {[%clk 0:02:27]}  Nh5 {[%clk 0:01:58]} 17. axb5 {[%clk 0:01:52]}  axb5 {[%clk 0:01:58]} 18. Rxa8 {[%clk 0:01:52]}  Rxa8 {[%clk 0:01:57]} 19. Nxe5 {[%clk 0:01:51]}  Nxe5 {[%clk 0:01:18]} 20. Qxh5 {[%clk 0:01:47]}  Ra2 {[%clk 0:01:09]} 21. Rb1 {[%clk 0:01:12]}  Bxe4 {[%clk 0:00:55]} 22. dxe4 {[%clk 0:01:06]}  Nc4 {[%clk 0:00:55]} 23. Rd1 {[%clk 0:00:43]}  Qe6 {[%clk 0:00:47]} 24. Rd8 {[%clk 0:00:18]}  Rxb2 {[%clk 0:00:43]} 25. Qc5 {[%clk 0:00:18]}  Nd6 {[%clk 0:00:43]} 26. Bd3 {[%clk 0:00:17]}  Rd2 {[%clk 0:00:39]} 27. Qe3 {[%clk 0:00:13]}  Rd1+ {[%clk 0:00:38]} 28. Kh2 {[%clk 0:00:13]}  Qe5+ {[%clk 0:00:30]} 29. g3 {[%clk 0:00:07]}  Qxc3 {[%clk 0:00:30]} 30. Bxb5 {[%clk 0:00:06]}  Qxe3 {[%clk 0:00:29]} 31. fxe3 {[%clk 0:00:05]}  Rd2+ {[%clk 0:00:29]} 32. Kg1 {[%clk 0:00:05]}  Nxe4 {[%clk 0:00:29]} 0-1


[Site "https://www.chess.com"]

[Event "Early Titled Tuesday Blitz | February 8 2022"]
[White "Hamley, Ryan"]
[Black "Thomas, Anysia"]
[WhiteFideId "30959497"]
[BlackFideId "670472"]
[WhiteElo "2473"]
[BlackElo "2002"]
[Result "1-0"]
[Round "08"]
[TimeControl "180+1"]
[Date "2022.02.08"]
[WhiteClock "0:01:27"]
[BlackClock "0:00:01"]

1. d4 {[%clk 0:03:00]}  Nf6 {[%clk 0:02:44]} 2. c4 {[%clk 0:03:01]}  g6 {[%clk 0:02:42]} 3. Nc3 {[%clk 0:03:00]}  d5 {[%clk 0:02:40]} 4. Nf3 {[%clk 0:02:59]}  Bg7 {[%clk 0:02:38]} 5. Qb3 {[%clk 0:02:59]}  dxc4 {[%clk 0:02:37]} 6. Qxc4 {[%clk 0:03:00]}  O-O {[%clk 0:02:38]} 7. e4 {[%clk 0:02:58]}  a6 {[%clk 0:02:38]} 8. Be2 {[%clk 0:02:52]}  b5 {[%clk 0:02:38]} 9. Qd3 {[%clk 0:02:51]}  c5 {[%clk 0:02:37]} 10. dxc5 {[%clk 0:02:50]}  Qa5 {[%clk 0:02:18]} 11. O-O {[%clk 0:02:36]}  Nc6 {[%clk 0:02:18]} 12. Nd5 {[%clk 0:02:34]}  Nxd5 {[%clk 0:02:09]} 13. exd5 {[%clk 0:02:32]}  Bf5 {[%clk 0:02:09]} 14. Qb3 {[%clk 0:02:28]}  Na7 {[%clk 0:01:00]} 15. Bd2 {[%clk 0:02:23]}  Qc7 {[%clk 0:01:00]} 16. Be3 {[%clk 0:02:21]}  Rfd8 {[%clk 0:00:58]} 17. Rfd1 {[%clk 0:02:17]}  Rac8 {[%clk 0:00:57]} 18. Rac1 {[%clk 0:02:15]}  Qa5 {[%clk 0:00:51]} 19. g3 {[%clk 0:02:11]}  b4 {[%clk 0:00:47]} 20. Rc4 {[%clk 0:02:05]}  Nb5 {[%clk 0:00:24]} 21. Rxb4 {[%clk 0:02:04]}  Nc7 {[%clk 0:00:22]} 22. Ra4 {[%clk 0:02:01]}  Qxa4 {[%clk 0:00:06]} 23. Qxa4 {[%clk 0:02:01]}  Nxd5 {[%clk 0:00:07]} 24. Qxa6 {[%clk 0:01:45]}  Bxb2 {[%clk 0:00:04]} 25. Rxd5 {[%clk 0:01:44]}  Rxd5 {[%clk 0:00:02]} 26. Qxc8+ {[%clk 0:01:43]}  Bxc8 {[%clk 0:00:01]} 27. Kg2 {[%clk 0:01:38]}  Rd8 {[%clk 0:00:02]} 28. Bc4 {[%clk 0:01:38]}  Bf6 {[%clk 0:00:02]} 29. Kf1 {[%clk 0:01:37]}  Bb7 {[%clk 0:00:03]} 30. Ke2 {[%clk 0:01:37]}  Bxf3+ {[%clk 0:00:03]} 31. Kxf3 {[%clk 0:01:37]}  Rc8 {[%clk 0:00:04]} 32. Ke4 {[%clk 0:01:35]}  e6 {[%clk 0:00:04]} 33. Kd3 {[%clk 0:01:33]}  Be7 {[%clk 0:00:05]} 34. Ba6 {[%clk 0:01:31]}  Rc7 {[%clk 0:00:04]} 35. Kc4 {[%clk 0:01:31]}  f5 {[%clk 0:00:03]} 36. Kb5 {[%clk 0:01:32]}  Kf7 {[%clk 0:00:03]} 37. c6 {[%clk 0:01:32]}  Bd6 {[%clk 0:00:03]} 38. Bb6 {[%clk 0:01:32]}  Re7 {[%clk 0:00:02]} 39. Bc8 {[%clk 0:01:29]}  Kf6 {[%clk 0:00:02]} 40. a4 {[%clk 0:01:30]}  Kg5 {[%clk 0:00:02]} 41. a5 {[%clk 0:01:30]}  Kf6 {[%clk 0:00:02]} 42. Bd8 {[%clk 0:01:29]}  e5 {[%clk 0:00:02]} 43. a6 {[%clk 0:01:29]}  f4 {[%clk 0:00:02]} 44. a7 {[%clk 0:01:29]}  e4 {[%clk 0:00:01]} 45. a8=Q {[%clk 0:01:28]}  e3 {[%clk 0:00:01]} 46. fxe3 {[%clk 0:01:28]}  fxe3 {[%clk 0:00:01]} 47. Qa1+ {[%clk 0:01:27]} 1-0


[Site "https://www.chess.com"]

[Event "Early Titled Tuesday Blitz | February 8 2022"]
[White "Iljushina, Olga"]
[Black "De Arruda, Leandro Formes"]
[WhiteFideId "4152280"]
[BlackFideId "22722009"]
[WhiteElo "1937"]
[BlackElo "1780"]
[Result "1-0"]
[Round "08"]
[TimeControl "180+1"]
[Date "2022.02.08"]
[WhiteClock "0:00:51"]
[BlackClock "0:00:22"]

1. d4 {[%clk 0:03:00]}  d5 {[%clk 0:02:49]} 2. c4 {[%clk 0:02:59]}  e6 {[%clk 0:02:49]} 3. Nc3 {[%clk 0:02:58]}  Nf6 {[%clk 0:02:47]} 4. cxd5 {[%clk 0:02:58]}  exd5 {[%clk 0:02:47]} 5. Bg5 {[%clk 0:02:58]}  c6 {[%clk 0:02:47]} 6. e3 {[%clk 0:02:58]}  Be7 {[%clk 0:02:48]} 7. Bd3 {[%clk 0:02:57]}  O-O {[%clk 0:02:48]} 8. Nf3 {[%clk 0:02:57]}  Ne4 {[%clk 0:02:48]} 9. Bxe7 {[%clk 0:02:55]}  Qxe7 {[%clk 0:02:49]} 10. Bxe4 {[%clk 0:02:54]}  dxe4 {[%clk 0:02:50]} 11. Nd2 {[%clk 0:02:54]}  f5 {[%clk 0:02:49]} 12. O-O {[%clk 0:02:49]}  Be6 {[%clk 0:02:49]} 13. Qc2 {[%clk 0:02:43]}  Na6 {[%clk 0:02:49]} 14. a3 {[%clk 0:02:42]}  Nc7 {[%clk 0:02:49]} 15. b4 {[%clk 0:02:41]}  a6 {[%clk 0:02:48]} 16. Rae1 {[%clk 0:02:37]}  Rf6 {[%clk 0:02:48]} 17. f3 {[%clk 0:02:37]}  exf3 {[%clk 0:02:45]} 18. Rxf3 {[%clk 0:02:36]}  Rh6 {[%clk 0:02:44]} 19. Ref1 {[%clk 0:02:32]}  Qh4 {[%clk 0:02:41]} 20. Rh3 {[%clk 0:02:31]}  Qg5 {[%clk 0:02:40]} 21. Rg3 {[%clk 0:02:29]}  Qh4 {[%clk 0:02:37]} 22. Nf3 {[%clk 0:02:27]}  Qf6 {[%clk 0:02:35]} 23. Ne5 {[%clk 0:02:24]}  Nd5 {[%clk 0:02:26]} 24. Nxd5 {[%clk 0:02:05]}  cxd5 {[%clk 0:02:27]} 25. Qc7 {[%clk 0:01:53]}  b5 {[%clk 0:02:18]} 26. Qc6 {[%clk 0:01:49]}  Qd8 {[%clk 0:02:02]} 27. Qb7 {[%clk 0:01:39]}  Qf8 {[%clk 0:01:55]} 28. Rxg7+ {[%clk 0:01:37]}  Qxg7 {[%clk 0:01:49]} 29. Qxa8+ {[%clk 0:01:36]}  Qf8 {[%clk 0:01:49]} 30. Qxa6 {[%clk 0:01:35]}  Qe8 {[%clk 0:01:32]} 31. Qd6 {[%clk 0:01:30]}  Qh5 {[%clk 0:01:28]} 32. Qd8+ {[%clk 0:01:28]}  Kg7 {[%clk 0:01:27]} 33. Qe7+ {[%clk 0:01:26]}  Kg8 {[%clk 0:01:25]} 34. h3 {[%clk 0:01:22]}  Qh4 {[%clk 0:00:45]} 35. Qxh4 {[%clk 0:01:19]}  Rxh4 {[%clk 0:00:46]} 36. Rc1 {[%clk 0:01:15]}  Re4 {[%clk 0:00:45]} 37. Rc6 {[%clk 0:01:09]}  Bf7 {[%clk 0:00:41]} 38. Rc8+ {[%clk 0:01:09]}  Kg7 {[%clk 0:00:37]} 39. Rc7 {[%clk 0:01:09]}  Kg8 {[%clk 0:00:37]} 40. Nxf7 {[%clk 0:01:05]}  Rxe3 {[%clk 0:00:37]} 41. Nh6+ {[%clk 0:01:04]}  Kf8 {[%clk 0:00:37]} 42. Nxf5 {[%clk 0:01:04]}  Rxa3 {[%clk 0:00:37]} 43. Rxh7 {[%clk 0:01:01]}  Rb3 {[%clk 0:00:36]} 44. Nd6 {[%clk 0:00:59]}  Rxb4 {[%clk 0:00:34]} 45. Nf5 {[%clk 0:00:59]}  Rb1+ {[%clk 0:00:29]} 46. Kf2 {[%clk 0:00:59]}  b4 {[%clk 0:00:30]} 47. Rb7 {[%clk 0:00:58]}  b3 {[%clk 0:00:31]} 48. g4 {[%clk 0:00:57]}  b2 {[%clk 0:00:30]} 49. Kg2 {[%clk 0:00:57]}  Ke8 {[%clk 0:00:27]} 50. g5 {[%clk 0:00:57]}  Kf8 {[%clk 0:00:28]} 51. g6 {[%clk 0:00:55]}  Kg8 {[%clk 0:00:28]} 52. h4 {[%clk 0:00:54]}  Kf8 {[%clk 0:00:21]} 53. h5 {[%clk 0:00:54]}  Ke8 {[%clk 0:00:21]} 54. h6 {[%clk 0:00:53]}  Kd8 {[%clk 0:00:21]} 55. h7 {[%clk 0:00:52]}  Kc8 {[%clk 0:00:22]} 56. Nd6+ {[%clk 0:00:51]} 1-0


[Site "https://www.chess.com"]

[Event "Early Titled Tuesday Blitz | February 8 2022"]
[White "Iskusnyh, Sergei"]
[Black "Shtyka, Sergey"]
[WhiteFideId "4120027"]
[BlackFideId "4138465"]
[WhiteElo "2492"]
[BlackElo "2014"]
[Result "1-0"]
[Round "08"]
[TimeControl "180+1"]
[Date "2022.02.08"]
[WhiteClock "0:00:07"]
[BlackClock "0:00:03"]

1. d4 {[%clk 0:03:00]}  c5 {[%clk 0:02:59]} 2. d5 {[%clk 0:03:00]}  e5 {[%clk 0:03:00]} 3. e4 {[%clk 0:03:00]}  d6 {[%clk 0:03:00]} 4. Bb5+ {[%clk 0:03:00]}  Bd7 {[%clk 0:03:00]} 5. a4 {[%clk 0:03:00]}  Be7 {[%clk 0:03:00]} 6. Nf3 {[%clk 0:02:57]}  Nf6 {[%clk 0:02:59]} 7. Nc3 {[%clk 0:02:55]}  O-O {[%clk 0:02:59]} 8. Be2 {[%clk 0:02:54]}  Bg4 {[%clk 0:02:59]} 9. Nd2 {[%clk 0:02:54]}  Bxe2 {[%clk 0:02:59]} 10. Qxe2 {[%clk 0:02:55]}  Nbd7 {[%clk 0:02:59]} 11. O-O {[%clk 0:02:54]}  Ne8 {[%clk 0:02:58]} 12. Nc4 {[%clk 0:02:50]}  Nc7 {[%clk 0:02:56]} 13. f4 {[%clk 0:02:38]}  exf4 {[%clk 0:02:51]} 14. Bxf4 {[%clk 0:02:37]}  Ne8 {[%clk 0:02:40]} 15. Kh1 {[%clk 0:02:34]}  Nb6 {[%clk 0:02:30]} 16. Ne3 {[%clk 0:02:33]}  Bf6 {[%clk 0:02:27]} 17. Nf5 {[%clk 0:02:29]}  g6 {[%clk 0:02:22]} 18. Nh6+ {[%clk 0:02:27]}  Kg7 {[%clk 0:02:22]} 19. Ng4 {[%clk 0:02:26]}  g5 {[%clk 0:01:44]} 20. Nxf6 {[%clk 0:02:20]}  Qxf6 {[%clk 0:01:44]} 21. Qg4 {[%clk 0:02:18]}  h6 {[%clk 0:01:41]} 22. Rae1 {[%clk 0:02:04]}  Qg6 {[%clk 0:01:40]} 23. Bg3 {[%clk 0:01:59]}  Rd8 {[%clk 0:01:16]} 24. a5 {[%clk 0:01:48]}  Nd7 {[%clk 0:01:06]} 25. Rf5 {[%clk 0:01:37]}  f6 {[%clk 0:00:52]} 26. Nd1 {[%clk 0:01:35]}  Ne5 {[%clk 0:00:48]} 27. Qe2 {[%clk 0:01:33]}  Kh7 {[%clk 0:00:40]} 28. Ref1 {[%clk 0:01:23]}  Ng7 {[%clk 0:00:39]} 29. R5f2 {[%clk 0:01:19]}  Rde8 {[%clk 0:00:36]} 30. b3 {[%clk 0:01:14]}  h5 {[%clk 0:00:34]} 31. Ne3 {[%clk 0:01:09]}  h4 {[%clk 0:00:32]} 32. Bxe5 {[%clk 0:01:08]}  Rxe5 {[%clk 0:00:32]} 33. Nc4 {[%clk 0:01:00]}  Rxe4 {[%clk 0:00:30]} 34. Qd3 {[%clk 0:01:00]}  Rd4 {[%clk 0:00:27]} 35. Qxg6+ {[%clk 0:00:58]}  Kxg6 {[%clk 0:00:28]} 36. Nxd6 {[%clk 0:00:58]}  Rxd5 {[%clk 0:00:28]} 37. Nxb7 {[%clk 0:00:57]}  a6 {[%clk 0:00:25]} 38. c4 {[%clk 0:00:37]}  Re5 {[%clk 0:00:22]} 39. Nd6 {[%clk 0:00:37]}  f5 {[%clk 0:00:17]} 40. Rd2 {[%clk 0:00:35]}  Rd8 {[%clk 0:00:17]} 41. Rfd1 {[%clk 0:00:35]}  g4 {[%clk 0:00:16]} 42. Kg1 {[%clk 0:00:35]}  Nh5 {[%clk 0:00:15]} 43. Kf2 {[%clk 0:00:33]}  Nf4 {[%clk 0:00:15]} 44. Nb7 {[%clk 0:00:31]}  Rxd2+ {[%clk 0:00:14]} 45. Rxd2 {[%clk 0:00:31]}  Kg5 {[%clk 0:00:13]} 46. Nd6 {[%clk 0:00:30]}  Kf6 {[%clk 0:00:12]} 47. Nb7 {[%clk 0:00:28]}  Ne6 {[%clk 0:00:11]} 48. Rd5 {[%clk 0:00:26]}  Nd4 {[%clk 0:00:09]} 49. Rxe5 {[%clk 0:00:25]}  Kxe5 {[%clk 0:00:09]} 50. Nxc5 {[%clk 0:00:26]}  f4 {[%clk 0:00:07]} 51. Nxa6 {[%clk 0:00:24]}  Nxb3 {[%clk 0:00:07]} 52. c5 {[%clk 0:00:22]}  Nxa5 {[%clk 0:00:07]} 53. Nb4 {[%clk 0:00:22]}  g3+ {[%clk 0:00:05]} 54. hxg3 {[%clk 0:00:22]}  fxg3+ {[%clk 0:00:06]} 55. Kf3 {[%clk 0:00:22]}  Ke6 {[%clk 0:00:05]} 56. Kg4 {[%clk 0:00:22]}  Nb3 {[%clk 0:00:05]} 57. c6 {[%clk 0:00:21]}  Kd6 {[%clk 0:00:05]} 58. Kxh4 {[%clk 0:00:21]}  Nd4 {[%clk 0:00:04]} 59. Kxg3 {[%clk 0:00:21]}  Nf5+ {[%clk 0:00:03]} 60. Kf4 {[%clk 0:00:21]}  Ne7 {[%clk 0:00:04]} 61. g4 {[%clk 0:00:21]}  Kc5 {[%clk 0:00:04]} 62. Ke5 {[%clk 0:00:17]}  Kxb4 {[%clk 0:00:03]} 63. Kd6 {[%clk 0:00:17]}  Nc8+ {[%clk 0:00:02]} 64. Kd7 {[%clk 0:00:17]}  Nb6+ {[%clk 0:00:02]} 65. Kd6 {[%clk 0:00:16]}  Nc8+ {[%clk 0:00:02]} 66. Kd7 {[%clk 0:00:16]}  Nb6+ {[%clk 0:00:02]} 67. Ke6 {[%clk 0:00:16]}  Kc5 {[%clk 0:00:02]} 68. c7 {[%clk 0:00:17]}  Kc6 {[%clk 0:00:03]} 69. g5 {[%clk 0:00:17]}  Kxc7 {[%clk 0:00:03]} 70. g6 {[%clk 0:00:18]}  Nd7 {[%clk 0:00:03]} 71. g7 {[%clk 0:00:18]}  Nc5+ {[%clk 0:00:03]} 72. Kf5 {[%clk 0:00:17]}  Nd7 {[%clk 0:00:02]} 73. g8=Q {[%clk 0:00:17]}  Kd6 {[%clk 0:00:03]} 74. Qe6+ {[%clk 0:00:16]}  Kc7 {[%clk 0:00:04]} 75. Qe7 {[%clk 0:00:16]}  Kc6 {[%clk 0:00:04]} 76. Ke4 {[%clk 0:00:14]}  Nc5+ {[%clk 0:00:04]} 77. Kd4 {[%clk 0:00:14]}  Nb3+ {[%clk 0:00:04]} 78. Kc3 {[%clk 0:00:14]}  Nc5 {[%clk 0:00:04]} 79. Kc4 {[%clk 0:00:13]}  Nb7 {[%clk 0:00:05]} 80. Qe6+ {[%clk 0:00:12]}  Nd6+ {[%clk 0:00:04]} 81. Kd4 {[%clk 0:00:12]}  Kc7 {[%clk 0:00:04]} 82. Kd5 {[%clk 0:00:12]}  Nc8 {[%clk 0:00:03]} 83. Qf7+ {[%clk 0:00:12]}  Kb6 {[%clk 0:00:03]} 84. Qd7 {[%clk 0:00:10]}  Na7 {[%clk 0:00:03]} 85. Qd8+ {[%clk 0:00:09]}  Kb7 {[%clk 0:00:04]} 86. Kc5 {[%clk 0:00:09]}  Nc8 {[%clk 0:00:04]} 87. Qd7+ {[%clk 0:00:09]}  Kb8 {[%clk 0:00:04]} 88. Kb5 {[%clk 0:00:07]}  Na7+ {[%clk 0:00:04]} 89. Ka6 {[%clk 0:00:07]}  Nc6 {[%clk 0:00:03]} 90. Qb7# {[%clk 0:00:07]} 1-0


[Site "https://www.chess.com"]

[Event "Early Titled Tuesday Blitz | February 8 2022"]
[White "Jaracz, Pawel"]
[Black "Nepomniachtchi, Ian"]
[WhiteFideId "1102222"]
[BlackFideId "4168119"]
[WhiteElo "2429"]
[BlackElo "2740"]
[Result "1-0"]
[Round "08"]
[TimeControl "180+1"]
[Date "2022.02.08"]
[WhiteClock "0:00:16"]
[BlackClock "0:00:14"]

1. e4 {[%clk 0:03:00]}  e6 {[%clk 0:02:59]} 2. d4 {[%clk 0:02:57]}  d5 {[%clk 0:03:00]} 3. Nd2 {[%clk 0:02:57]}  a5 {[%clk 0:02:59]} 4. Ngf3 {[%clk 0:02:57]}  a4 {[%clk 0:02:59]} 5. Bd3 {[%clk 0:02:56]}  Nf6 {[%clk 0:02:59]} 6. O-O {[%clk 0:02:56]}  a3 {[%clk 0:02:58]} 7. b3 {[%clk 0:02:55]}  Bb4 {[%clk 0:02:58]} 8. e5 {[%clk 0:02:55]}  Nfd7 {[%clk 0:02:58]} 9. c4 {[%clk 0:02:54]}  dxc4 {[%clk 0:02:51]} 10. bxc4 {[%clk 0:02:52]}  Nc6 {[%clk 0:02:51]} 11. Ne4 {[%clk 0:02:49]}  Nb6 {[%clk 0:02:50]} 12. Rb1 {[%clk 0:02:40]}  Be7 {[%clk 0:02:50]} 13. Be3 {[%clk 0:02:40]}  Nb4 {[%clk 0:02:49]} 14. Be2 {[%clk 0:02:36]}  Nxa2 {[%clk 0:02:49]} 15. Qd2 {[%clk 0:02:37]}  Nb4 {[%clk 0:02:45]} 16. Rxb4 {[%clk 0:02:36]}  Bxb4 {[%clk 0:02:45]} 17. Qxb4 {[%clk 0:02:35]}  Qe7 {[%clk 0:02:46]} 18. Nc5 {[%clk 0:02:02]}  Nd7 {[%clk 0:02:36]} 19. Ra1 {[%clk 0:01:49]}  b6 {[%clk 0:02:34]} 20. Nd3 {[%clk 0:01:17]}  Qxb4 {[%clk 0:02:33]} 21. Nxb4 {[%clk 0:01:18]}  Bb7 {[%clk 0:02:34]} 22. c5 {[%clk 0:01:05]}  bxc5 {[%clk 0:02:07]} 23. dxc5 {[%clk 0:01:06]}  Ra4 {[%clk 0:02:07]} 24. Bd2 {[%clk 0:00:52]}  Bxf3 {[%clk 0:01:52]} 25. gxf3 {[%clk 0:00:51]}  Ra8 {[%clk 0:01:32]} 26. Bb5 {[%clk 0:00:48]}  Ke7 {[%clk 0:01:32]} 27. Nc6+ {[%clk 0:00:48]}  Kf8 {[%clk 0:01:32]} 28. f4 {[%clk 0:00:40]}  g5 {[%clk 0:01:33]} 29. fxg5 {[%clk 0:00:37]}  Kg7 {[%clk 0:01:33]} 30. Ba5 {[%clk 0:00:27]}  Nxc5 {[%clk 0:01:30]} 31. Rxa3 {[%clk 0:00:27]}  Ne4 {[%clk 0:00:58]} 32. h4 {[%clk 0:00:26]}  h6 {[%clk 0:00:58]} 33. Re3 {[%clk 0:00:24]}  Nc5 {[%clk 0:00:54]} 34. Bb4 {[%clk 0:00:24]}  Nd7 {[%clk 0:00:52]} 35. Be7 {[%clk 0:00:23]}  hxg5 {[%clk 0:00:51]} 36. Bxg5 {[%clk 0:00:23]}  Ra1+ {[%clk 0:00:48]} 37. Kg2 {[%clk 0:00:23]}  Rb1 {[%clk 0:00:48]} 38. Nd4 {[%clk 0:00:23]}  Nxe5 {[%clk 0:00:19]} 39. Rxe5 {[%clk 0:00:23]}  f6 {[%clk 0:00:20]} 40. Nxe6+ {[%clk 0:00:21]}  Kf7 {[%clk 0:00:20]} 41. Rf5 {[%clk 0:00:19]}  Kxe6 {[%clk 0:00:21]} 42. Rxf6+ {[%clk 0:00:19]}  Ke5 {[%clk 0:00:21]} 43. Bd3 {[%clk 0:00:19]}  Rb3 {[%clk 0:00:21]} 44. Bg6 {[%clk 0:00:19]}  Ra8 {[%clk 0:00:17]} 45. h5 {[%clk 0:00:17]}  Ra4 {[%clk 0:00:16]} 46. Rf5+ {[%clk 0:00:16]}  Ke6 {[%clk 0:00:15]} 47. Rf6+ {[%clk 0:00:16]}  Ke5 {[%clk 0:00:16]} 48. f3 {[%clk 0:00:16]}  Rb2+ {[%clk 0:00:14]} 49. Kg3 {[%clk 0:00:16]}  Rb1 {[%clk 0:00:14]} 50. Bxb1 {[%clk 0:00:16]} 1-0


[Site "https://www.chess.com"]

[Event "Early Titled Tuesday Blitz | February 8 2022"]
[White "Jones, Gawain C B"]
[Black "Abdusattorov, Nodirbek"]
[WhiteFideId "409561"]
[BlackFideId "14204118"]
[WhiteElo "2657"]
[BlackElo "2663"]
[Result "1-0"]
[Round "08"]
[TimeControl "180+1"]
[Date "2022.02.08"]
[WhiteClock "0:00:05"]
[BlackClock "0:00:01"]

1. Nf3 {[%clk 0:03:00]}  Nf6 {[%clk 0:02:59]} 2. g3 {[%clk 0:03:00]}  g6 {[%clk 0:02:57]} 3. b3 {[%clk 0:03:00]}  Bg7 {[%clk 0:02:58]} 4. Bb2 {[%clk 0:03:00]}  O-O {[%clk 0:02:59]} 5. Bg2 {[%clk 0:03:01]}  d6 {[%clk 0:02:59]} 6. d4 {[%clk 0:02:59]}  Nc6 {[%clk 0:02:52]} 7. O-O {[%clk 0:02:58]}  Ne4 {[%clk 0:02:39]} 8. Nbd2 {[%clk 0:02:54]}  Bf5 {[%clk 0:02:37]} 9. c4 {[%clk 0:02:50]}  e5 {[%clk 0:02:29]} 10. Nxe5 {[%clk 0:02:11]}  dxe5 {[%clk 0:02:26]} 11. Nxe4 {[%clk 0:02:11]}  exd4 {[%clk 0:02:22]} 12. Nc5 {[%clk 0:02:10]}  b6 {[%clk 0:02:16]} 13. e4 {[%clk 0:01:51]}  Bc8 {[%clk 0:01:12]} 14. Nd3 {[%clk 0:01:50]}  Ne7 {[%clk 0:01:02]} 15. c5 {[%clk 0:01:39]}  a5 {[%clk 0:00:53]} 16. Rc1 {[%clk 0:01:32]}  Ba6 {[%clk 0:00:53]} 17. Re1 {[%clk 0:01:30]}  Rc8 {[%clk 0:00:49]} 18. Nf4 {[%clk 0:01:14]}  Nc6 {[%clk 0:00:39]} 19. cxb6 {[%clk 0:01:06]}  cxb6 {[%clk 0:00:39]} 20. Bh3 {[%clk 0:01:06]}  Ne5 {[%clk 0:00:38]} 21. Bxc8 {[%clk 0:01:02]}  Bxc8 {[%clk 0:00:39]} 22. f3 {[%clk 0:00:31]}  Ba6 {[%clk 0:00:39]} 23. Kg2 {[%clk 0:00:27]}  g5 {[%clk 0:00:39]} 24. Nd5 {[%clk 0:00:19]}  g4 {[%clk 0:00:33]} 25. fxg4 {[%clk 0:00:17]}  Nd3 {[%clk 0:00:33]} 26. Ba3 {[%clk 0:00:17]}  Re8 {[%clk 0:00:30]} 27. Nc7 {[%clk 0:00:17]}  Nxe1+ {[%clk 0:00:17]} 28. Qxe1 {[%clk 0:00:17]}  d3 {[%clk 0:00:18]} 29. Nxe8 {[%clk 0:00:11]}  d2 {[%clk 0:00:18]} 30. Qd1 {[%clk 0:00:11]}  dxc1=Q {[%clk 0:00:15]} 31. Qxc1 {[%clk 0:00:09]}  Qxe8 {[%clk 0:00:15]} 32. Qf4 {[%clk 0:00:06]}  Bb7 {[%clk 0:00:15]} 33. Kf3 {[%clk 0:00:06]}  Qe5 {[%clk 0:00:15]} 34. Bc1 {[%clk 0:00:05]}  Qxf4+ {[%clk 0:00:11]} 35. gxf4 {[%clk 0:00:05]}  Bd4 {[%clk 0:00:11]} 36. g5 {[%clk 0:00:04]}  f5 {[%clk 0:00:08]} 37. gxf6 {[%clk 0:00:04]}  Kf7 {[%clk 0:00:09]} 38. f5 {[%clk 0:00:03]}  Kxf6 {[%clk 0:00:09]} 39. Bf4 {[%clk 0:00:02]}  h5 {[%clk 0:00:08]} 40. Bc7 {[%clk 0:00:02]}  Bc6 {[%clk 0:00:06]} 41. Kf4 {[%clk 0:00:02]}  Kf7 {[%clk 0:00:03]} 42. e5 {[%clk 0:00:03]}  Bc5 {[%clk 0:00:03]} 43. Kg5 {[%clk 0:00:03]}  Be3+ {[%clk 0:00:03]} 44. Kxh5 {[%clk 0:00:03]}  Bf3+ {[%clk 0:00:02]} 45. Kh4 {[%clk 0:00:04]}  Bf2+ {[%clk 0:00:03]} 46. Kg5 {[%clk 0:00:04]}  Be3+ {[%clk 0:00:03]} 47. Kh4 {[%clk 0:00:04]}  a4 {[%clk 0:00:02]} 48. Bd6 {[%clk 0:00:04]}  axb3 {[%clk 0:00:02]} 49. axb3 {[%clk 0:00:05]}  b5 {[%clk 0:00:02]} 50. b4 {[%clk 0:00:05]}  Bf2+ {[%clk 0:00:02]} 51. Kg5 {[%clk 0:00:05]}  Be3+ {[%clk 0:00:02]} 52. Kh4 {[%clk 0:00:06]}  Bd2 {[%clk 0:00:03]} 53. Kg3 {[%clk 0:00:06]}  Be4 {[%clk 0:00:03]} 54. Kg4 {[%clk 0:00:06]}  Bd3 {[%clk 0:00:03]} 55. Bc5 {[%clk 0:00:06]}  Be2+ {[%clk 0:00:04]} 56. Kg3 {[%clk 0:00:07]}  Bc3 {[%clk 0:00:04]} 57. Kf4 {[%clk 0:00:06]}  Bd2+ {[%clk 0:00:04]} 58. Ke4 {[%clk 0:00:06]}  Bd1 {[%clk 0:00:04]} 59. e6+ {[%clk 0:00:06]}  Kf6 {[%clk 0:00:04]} 60. Bd4+ {[%clk 0:00:07]}  Ke7 {[%clk 0:00:04]} 61. Ke5 {[%clk 0:00:07]}  Bxb4 {[%clk 0:00:03]} 62. f6+ {[%clk 0:00:07]}  Kf8 {[%clk 0:00:04]} 63. Be3 {[%clk 0:00:07]}  Kg8 {[%clk 0:00:03]} 64. h4 {[%clk 0:00:05]}  Bc3+ {[%clk 0:00:03]} 65. Kf5 {[%clk 0:00:05]}  Bc2+ {[%clk 0:00:04]} 66. Kg5 {[%clk 0:00:05]}  Bb4 {[%clk 0:00:03]} 67. Bd4 {[%clk 0:00:03]}  Bb3 {[%clk 0:00:03]} 68. Kf5 {[%clk 0:00:03]}  Bc2+ {[%clk 0:00:03]} 69. Kg5 {[%clk 0:00:03]}  Bb3 {[%clk 0:00:03]} 70. Kf5 {[%clk 0:00:03]}  Bc2+ {[%clk 0:00:04]} 71. Ke5 {[%clk 0:00:04]}  Kh7 {[%clk 0:00:04]} 72. e7 {[%clk 0:00:04]}  Bg6 {[%clk 0:00:04]} 73. Ke6 {[%clk 0:00:04]}  Kg8 {[%clk 0:00:03]} 74. Kd7 {[%clk 0:00:03]}  Be1 {[%clk 0:00:01]} 75. e8=Q+ {[%clk 0:00:03]}  Bxe8+ {[%clk 0:00:02]} 76. Kxe8 {[%clk 0:00:04]}  Bb4 {[%clk 0:00:01]} 77. h5 {[%clk 0:00:04]}  Kh7 {[%clk 0:00:01]} 78. f7 {[%clk 0:00:03]}  Kh6 {[%clk 0:00:01]} 79. Bf6 {[%clk 0:00:04]}  Bc3 {[%clk 0:00:01]} 80. Bxc3 {[%clk 0:00:04]}  Kxh5 {[%clk 0:00:01]} 81. f8=Q {[%clk 0:00:05]} 1-0


[Site "https://www.chess.com"]